fUSD/lending_fUSD_20250513
["ID","MTS","AMOUNT","RATE_DAILY","PERIOD"]
[360888249,1747105840184,-432.06,0.00013736,2]
[360888250,1747105840193,-400.0,0.00013736,2]
[360888251,1747105840202,-400.0,0.00013736,2]
[360888252,1747105840211,-400.0,0.00013736,2]
[360888253,1747105840222,-1093.02,0.00013736,2]
[360888254,1747105840233,-401.81,0.00013736,2]
[360888255,1747105840242,-400.0,0.00013736,2]
[360888256,1747105840253,-200.07917754,0.00013736,2]
[360888257,1747105840262,-400.0,0.00013736,2]
[360888258,1747105840272,-400.0,0.00013736,2]
[360888259,1747105840282,-400.0,0.00013736,2]
[360888260,1747105840291,-400.0,0.00013736,2]
[360888261,1747105840301,-247.66452208,0.00013736,2]
[360888263,1747105840311,-400.0,0.00013736,2]
[360888265,1747105840324,-476.42136583,0.00013736,2]
[360888267,1747105840543,-300.55281775,0.00013736,2]
[360888269,1747105840553,-400.0,0.00013736,2]
[360888271,1747105840563,-430.28355687,0.00013736,2]
[360888273,1747105840573,-400.0,0.00013736,2]
[360888275,1747105840582,-400.0,0.00013736,2]
[360888276,1747105840592,-400.0,0.00013736,2]
[360888277,1747105840602,-509.2,0.00013736,2]
[360888278,1747105840612,-400.0,0.00013736,2]
[360888279,1747105840621,-447.7,0.00013736,2]
[360888280,1747105840632,-400.0,0.00013736,2]
[360888281,1747105840641,-400.0,0.00013736,2]
[360888282,1747105840651,-400.0,0.00013736,2]
[360888283,1747105840660,-400.0,0.00013736,2]
[360888284,1747105840669,-400.0,0.00013736,2]
[360888285,1747105840678,-400.0,0.00013736,2]
[360888286,1747105840688,-460.54235234,0.00013736,2]
[360888287,1747105840697,-401.63669822,0.00013736,2]
[360888288,1747105840707,-400.0,0.00013736,2]
[360888289,1747105840716,-836.22,0.00013736,2]
[360888290,1747105840725,-400.0,0.00013736,2]
[360888291,1747105840735,-400.0,0.00013736,2]
[360888292,1747105840745,-400.0,0.00013736,2]
[360888293,1747105840755,-459.26,0.00013736,2]
[360888294,1747105840765,-400.0,0.00013736,2]
[360888295,1747105840776,-410.49672551,0.00013736,2]
[360888296,1747105840785,-401.5352641,0.00013736,2]
[360888297,1747105840796,-400.0,0.00013736,2]
[360888298,1747105840807,-400.0,0.00013736,2]
[360888299,1747105840817,-400.0,0.00013736,2]
[360888300,1747105840826,-400.0,0.00013736,2]
[360888301,1747105840837,-400.0,0.00013736,2]
[360888302,1747105840847,-447.755272,0.00013736,2]
[360888303,1747105840856,-517.64,0.00013736,2]
[360888304,1747105840865,-400.0,0.00013736,2]
[360888305,1747105840874,-225.30926669,0.00013736,2]
[360888306,1747105840886,-1303.67,0.00013736,2]
[360888307,1747105840895,-400.0,0.00013736,2]
[360888308,1747105840905,-689.62,0.00013736,2]
[360888309,1747105840914,-400.0,0.00013736,2]
[360888310,1747105840923,-407.66994352,0.00013736,2]
[360888311,1747105840932,-400.0,0.00013736,2]
[360888312,1747105840942,-399.7549215,0.00013736,2]
[360888313,1747105840952,-507.0,0.00013736,2]
[360888314,1747105840961,-650.2,0.00013736,2]
[360888315,1747105840970,-400.0,0.00013736,2]
[360888316,1747105840979,-400.0,0.00013736,2]
[360888317,1747105840989,-400.0,0.00013736,2]
[360888318,1747105840999,-482.16547547,0.00013736,2]
[360888319,1747105841010,-400.0,0.00013736,2]
[360888320,1747105841031,-528.0,0.00013736,2]
[360888321,1747105841041,-400.0,0.00013736,2]
[360888322,1747105841051,-400.0,0.00013736,2]
[360888323,1747105841061,-530.1,0.00013736,2]
[360888324,1747105841070,-400.0,0.00013736,2]
[360888325,1747105841080,-563.95,0.00013736,2]
[360888326,1747105841089,-400.0,0.00013736,2]
[360888327,1747105841099,-400.0,0.00013736,2]
[360888328,1747105841109,-400.0,0.00013736,2]
[360888329,1747105841119,-400.0,0.00013736,2]
[360888330,1747105841128,-400.0,0.00013736,2]
[360888331,1747105841138,-400.0,0.00013736,2]
[360888332,1747105841148,-21053.58577744,0.00013736,2]
[360888333,1747105841615,-3921.46011942,0.00013736,2]
[360888334,1747105841626,-1220.14100064,0.00013736,2]
[360888346,1747105842919,-1021.47983246,0.00013736,2]
[360888347,1747105842931,-2724.24964053,0.00013736,2]
[360888348,1747105843109,-18799.05362951,0.00013736,2]
[360888349,1747105843119,-400.0,0.00013736,2]
[360888350,1747105843129,-607.53,0.00013736,2]
[360888351,1747105843139,-400.0,0.00013736,2]
[360888352,1747105843148,-400.0,0.00013736,2]
[360888353,1747105843158,-400.0,0.00013736,2]
[360888354,1747105843168,-400.0,0.00013736,2]
[360888355,1747105843181,-1612.31,0.00013736,2]
[360888356,1747105843191,-400.0,0.00013736,2]
[360888357,1747105843200,-400.0,0.00013736,2]
[360888358,1747105843210,-400.0,0.00013737,2]
[360888359,1747105843220,-400.0,0.00013737,2]
[360888360,1747105843229,-400.0,0.00013737,2]
[360888361,1747105843239,-400.0,0.00013737,2]
[360888362,1747105843250,-400.0,0.00013737,2]
[360888363,1747105843260,-400.0,0.00013737,2]
[360888364,1747105843270,-400.0,0.00013737,2]
[360888365,1747105843279,-400.0,0.00013737,2]
[360888366,1747105843289,-326.98694392,0.00013737,2]
[360888367,1747105843298,-505.87650126,0.00013737,2]
[360888368,1747105843308,-400.0,0.00013737,2]
[360888369,1747105843319,-451.19309214,0.00013737,2]
[360888370,1747105843329,-400.0,0.00013737,2]
[360888371,1747105843339,-400.0,0.00013737,2]
[360888372,1747105843350,-400.0,0.00013737,2]
[360888373,1747105843360,-400.0,0.00013737,2]
[360888374,1747105843370,-188.99571756,0.00013737,2]
[360888375,1747105843380,-400.0,0.00013737,2]
[360888376,1747105843389,-400.0,0.00013737,2]
[360888377,1747105843399,-400.0,0.00013737,2]
[360888378,1747105843408,-400.0,0.00013737,2]
[360888379,1747105843418,-412.76794232,0.00013737,2]
[360888380,1747105843428,-452.63,0.00013737,2]
[360888381,1747105843438,-441.4,0.00013737,2]
[360888382,1747105843449,-470.08,0.00013737,2]
[360888383,1747105843459,-400.0,0.00013737,2]
[360888384,1747105843468,-400.0,0.00013737,2]
[360888385,1747105843478,-400.0,0.00013737,2]
[360888386,1747105843488,-521.13568043,0.00013737,2]
[360888387,1747105843498,-400.0,0.00013737,2]
[360888388,1747105843509,-1185.0,0.00013737,2]
[360888389,1747105843519,-400.0,0.00013737,2]
[360888390,1747105843531,-400.0,0.00013737,2]
[360888391,1747105843541,-400.0,0.00013737,2]
[360888393,1747105843556,-400.0,0.00013737,2]
[360888395,1747105843567,-400.0,0.00013737,2]
[360888397,1747105843582,-217.54049286,0.00013737,2]
[360888398,1747105843596,-182.45950714,0.00013737,2]
[360888399,1747105843606,-400.0,0.00013737,2]
[360888400,1747105843617,-50.74049286,0.00013737,2]
[360888401,1747105843643,-349.25950714,0.00013737,2]
[360888402,1747105843652,-400.0,0.00013737,2]
[360888403,1747105843662,-400.0,0.00013737,2]
[360888404,1747105843671,-400.0,0.00013737,2]
[360888405,1747105843681,-400.0,0.00013737,2]
[360888406,1747105843690,-262.35750558,0.00013737,2]
[360888407,1747105843700,-400.0,0.00013737,2]
[360888408,1747105843710,-493.85,0.00013737,2]
[360888409,1747105843719,-400.0,0.00013737,2]
[360888410,1747105843729,-400.0,0.00013737,2]
[360888411,1747105843739,-400.0,0.00013737,2]
[360888412,1747105843748,-400.0,0.00013737,2]
[360888413,1747105843758,-400.0,0.00013737,2]
[360888414,1747105843769,-400.0,0.00013737,2]
[360888415,1747105843778,-400.0,0.00013737,2]
[360888416,1747105843788,-752.45,0.00013737,2]
[360888417,1747105843798,-983.68,0.00013737,2]
[360888418,1747105843807,-400.0,0.00013737,2]
[360888419,1747105843818,-457.36,0.00013737,2]
[360888420,1747105843828,-1097.96,0.00013737,2]
[360888421,1747105843837,-879.83,0.00013737,2]
[360888422,1747105843847,-500.0,0.00013737,2]
[360888423,1747105843859,-496.61,0.00013737,2]
[360888424,1747105843869,-400.0,0.00013737,2]
[360888425,1747105843879,-239.90361408,0.00013737,2]
[360888426,1747105843888,-675.14,0.00013737,2]
[360888427,1747105843898,-400.0,0.00013737,2]
[360888428,1747105843909,-400.0,0.00013737,2]
[360888429,1747105843919,-400.0,0.00013737,2]
[360888430,1747105843930,-400.0,0.00013737,2]
[360888431,1747105843940,-400.0,0.00013737,2]
[360888432,1747105843949,-690.79,0.00013737,2]
[360888433,1747105843959,-400.0,0.00013737,2]
[360888434,1747105843968,-605.02,0.00013737,2]
[360888435,1747105843978,-231.33129264,0.00013737,2]
[360888436,1747105843987,-400.0,0.00013737,2]
[360888437,1747105843996,-625.2,0.00013737,2]
[360888438,1747105844006,-400.0,0.00013737,2]
[360888439,1747105844015,-400.0,0.00013737,2]
[360888440,1747105844025,-400.0,0.00013737,2]
[360888441,1747105844034,-400.0,0.00013737,2]
[360888442,1747105844044,-400.0,0.00013737,2]
[360888443,1747105844053,-400.0,0.00013737,2]
[360888444,1747105844063,-661.37,0.00013737,2]
[360888445,1747105844073,-496.14,0.00013737,2]
[360888446,1747105844082,-1771.25,0.00013737,2]
[360888447,1747105844091,-400.0,0.00013737,2]
[360888448,1747105844100,-400.0,0.00013737,2]
[360888449,1747105844109,-413.6,0.00013737,2]
[360888450,1747105844119,-958.99,0.00013737,2]
[360888451,1747105844129,-400.0,0.00013737,2]
[360888452,1747105844139,-400.0,0.00013737,2]
[360888453,1747105844148,-400.0,0.00013737,2]
[360888454,1747105844157,-400.0,0.00013737,2]
[360888455,1747105844167,-400.0,0.00013737,2]
[360888456,1747105844177,-400.0,0.00013737,2]
[360888457,1747105844187,-400.0,0.00013737,2]
[360888458,1747105844196,-400.0,0.00013737,2]
[360888459,1747105844206,-402.68,0.00013737,2]
[360888460,1747105844215,-400.0,0.00013737,2]
[360888461,1747105844225,-921.91,0.00013737,2]
[360888462,1747105844235,-458.23,0.00013737,2]
[360888463,1747105844245,-921.38,0.00013737,2]
[360888464,1747105844256,-665.34,0.00013737,2]
[360888465,1747105844266,-400.0,0.00013737,2]
[360888466,1747105844275,-1009.81,0.00013737,2]
[360888467,1747105844287,-400.0,0.00013737,2]
[360888468,1747105844297,-400.0,0.00013737,2]
[360888469,1747105844307,-827.52,0.00013737,2]
[360888470,1747105844317,-267.31645783,0.00013737,2]
[360888471,1747105844326,-400.0,0.00013738,2]
[360888472,1747105844336,-400.0,0.00013738,2]
[360888473,1747105844346,-403.84232242,0.00013738,2]
[360888474,1747105844355,-579.21,0.00013738,2]
[360888475,1747105844365,-5256.77123152,0.00013741,2]
[360888476,1747105844374,-1499.073,0.00013745,2]
[360888477,1747105844383,-213.86379674,0.00013745,2]
[360888478,1747105844393,-167.44216735,0.00013752,2]
[360888479,1747105844403,-400.0,0.00013752,2]
[360888480,1747105844413,-191.68016537,0.00013752,2]
[360888481,1747105844422,-400.0,0.00013752,2]
[360888482,1747105844432,-400.0,0.00013752,2]
[360888483,1747105844443,-400.0,0.00013752,2]
[360888484,1747105844452,-749.65,0.00013752,2]
[360888485,1747105844463,-530.55,0.00013752,2]
[360888486,1747105844472,-400.0,0.00013752,2]
[360888487,1747105844482,-400.0,0.00013752,2]
[360888488,1747105844492,-249.05559453,0.00013752,2]
[360888489,1747105844502,-479.74,0.00013752,2]
[360888490,1747105844512,-400.0,0.00013752,2]
[360888491,1747105844521,-500.0,0.00013752,2]
[360888492,1747105844531,-400.0,0.00013752,2]
[360888493,1747105844540,-646.56,0.00013752,2]
[360888494,1747105844549,-402.31651475,0.00013775,2]
[360888495,1747105844558,-400.0,0.00013775,2]
[360888496,1747105844568,-400.0,0.00013775,2]
[360888497,1747105844577,-400.0,0.00013775,2]
[360888498,1747105844586,-400.0,0.00013775,2]
[360888499,1747105844596,-891.96,0.00013775,2]
[360888500,1747105844605,-716.0,0.00013775,2]
[360888501,1747105844614,-400.0,0.00013775,2]
[360888502,1747105844623,-400.0,0.00013775,2]
[360888503,1747105844633,-400.0,0.00013775,2]
[360888504,1747105844642,-1150.21,0.00013775,2]
[360888505,1747105844651,-606.68,0.00013775,2]
[360888506,1747105844661,-457.34,0.00013775,2]
[360888507,1747105844670,-1116.78,0.00013775,2]
[360888508,1747105844679,-811.63,0.00013775,2]
[360888509,1747105844688,-400.0,0.00013775,2]
[360888510,1747105844697,-1443.43,0.00013775,2]
[360888511,1747105844707,-610.94,0.00013775,2]
[360888512,1747105844716,-400.0,0.00013775,2]
[360888513,1747105844725,-2307.27,0.00013775,2]
[360888514,1747105844734,-813.67,0.00013775,2]
[360888515,1747105844744,-420.25,0.00013775,2]
[360888516,1747105844754,-400.0,0.00013775,2]
[360888517,1747105844763,-549.33,0.00013775,2]
[360888518,1747105844772,-1146.0,0.00013776,2]
[360888519,1747105844782,-5939.0,0.00013776,2]
[360888520,1747105844791,-347.7000056,0.00013778,2]
[360888521,1747105844801,-888.94,0.00013781,2]
[360888522,1747105844810,-303.0,0.00013788,2]
[360888523,1747105844819,-301.53,0.00013788,2]
[360888524,1747105844829,-10.64830199,0.0001379,2]
[360888525,1747105844843,-309.56825582,0.0001379,2]
[360888528,1747105845667,-1490.42905445,0.00013736,2]
[360888529,1747105845772,-260.33094555,0.00013736,2]
[360888530,1747105845783,-79.78344219,0.0001379,2]
[360888531,1747105845792,-400.0,0.0001379,2]
[360888532,1747105845802,-400.0,0.0001379,2]
[360888533,1747105845812,-175.23562028,0.0001379,2]
[360888534,1747105846080,-400.0,0.0001379,2]
[360888535,1747105846091,-813.04,0.0001379,2]
[360888536,1747105846101,-400.0,0.0001379,2]
[360888537,1747105846110,-219.9446082,0.0001379,2]
[360888538,1747105846124,-180.0553918,0.0001379,2]
[360888539,1747105846133,-400.0,0.0001379,2]
[360888540,1747105846142,-649.89,0.0001379,2]
[360888541,1747105846152,-637.76,0.0001379,2]
[360888542,1747105846161,-400.0,0.0001379,2]
[360888543,1747105846171,-481.92,0.0001379,2]
[360888544,1747105846184,-400.0,0.0001379,2]
[360888545,1747105846194,-754.98,0.0001379,2]
[360888546,1747105846205,-1147.31,0.0001379,2]
[360888547,1747105846215,-400.0,0.0001379,2]
[360888548,1747105846226,-400.0,0.0001379,2]
[360888549,1747105846236,-614.74,0.0001379,2]
[360888550,1747105846246,-1004.505064,0.0001379,2]
[360888551,1747105846258,-158.612757,0.0001379,2]
[360888552,1747105846269,-400.0,0.0001379,2]
[360888553,1747105846283,-2958.18,0.0001379,2]
[360888554,1747105846297,-400.0,0.0001379,2]
[360888555,1747105846309,-400.0,0.0001379,2]
[360888556,1747105846322,-400.0,0.0001379,2]
[360888557,1747105846340,-698.09,0.0001379,2]
[360888558,1747105846349,-150.648152,0.0001379,2]
[360888559,1747105846359,-400.0,0.0001379,2]
[360888560,1747105846369,-400.0,0.0001379,2]
[360888561,1747105846379,-400.0,0.0001379,2]
[360888562,1747105846389,-221.61680175,0.00013791,2]
[360888563,1747105846398,-401.25333998,0.00013791,2]
[360888564,1747105846408,-402.1063185,0.00013791,2]
[360888565,1747105846417,-400.0,0.00013791,2]
[360888566,1747105846427,-464.51476441,0.00013791,2]
[360888567,1747105846438,-424.87741056,0.00013791,2]
[360888568,1747105846450,-12.55883964,0.00013791,2]
[360888569,1747105846460,-198.472171,0.00013791,2]
[360888570,1747105846470,-400.0,0.00013791,2]
[360888571,1747105846479,-333.96898936,0.00013791,2]
[360888572,1747106454650,231.66,0.00010831,2]
[360888614,1747106942399,-191.75447035,0.00012,2]
[360888615,1747106947645,-262.53340371,0.00012,2]
[360888621,1747106965773,-272.35246577,0.00012,2]
[360888622,1747106977680,-154.0938639,0.00012,2]
[360888626,1747106993304,-186.20793429,0.00012,2]
[360888629,1747107007891,-159.69820181,0.0001199,2]
[360888633,1747107031825,-276.65889505,0.00011999,2]
[360888635,1747107031838,-23.34110495,0.00011999,2]
[360888637,1747107031847,-554.74679265,0.00011999,2]
[360888641,1747107031881,-583.19022701,0.00011999,2]
[360888642,1747107031949,-62.06298034,0.00011999,2]
[360888643,1747107031959,-150.0,0.00011999,2]
[360888644,1747107031969,-300.0,0.00011999,2]
[360888645,1747107031978,-5432.83527744,0.00012,2]
[360888646,1747107031989,-20342.198,0.00012,2]
[360888647,1747107032012,-517.70502891,0.00012,2]
[360888648,1747107032056,-6050.11730179,0.00012,2]
[360888649,1747107032068,-20338.19560001,0.00012,2]
[360888650,1747107032079,-816.01819361,0.00012,2]
[360888651,1747107032114,-897.91419975,0.00012,2]
[360888652,1747107032125,-290.23984148,0.00012,2]
[360888653,1747107032136,-1604.93530567,0.00012,2]
[360888654,1747107032147,-1043.68997154,0.00012,2]
[360888655,1747107032159,-515.15972353,0.00012,2]
[360888663,1747107037843,-286.15581563,0.0001199,2]
[360888665,1747107037853,-286.15581563,0.0001199,2]
[360888666,1747107037863,-324.44380568,0.00012,2]
[360888667,1747107037904,-1342.69,0.00012,2]
[360888668,1747107037919,-349.83431461,0.00012,2]
[360888669,1747107037935,-8961.03340371,0.00012,2]
[360888670,1747107037963,-11874.1775,0.00012,2]
[360888671,1747107037975,-296.43913838,0.00012,2]
[360888672,1747107037987,-3623.60042211,0.00012,2]
[360888673,1747107037998,-1070.70831661,0.00012,2]
[360888674,1747107038021,-354.60144798,0.00012,2]
[360888675,1747107038079,-665.35250677,0.00012,2]
[360888676,1747107038090,-326.95919167,0.00012,2]
[360888677,1747107038101,-21757.3617615,0.00012,2]
[360888678,1747107038136,-1631.0,0.00012,2]
[360888679,1747107038194,-575.44595638,0.00012,2]
[360888680,1747107038205,-10642.14519315,0.00012,2]
[360888681,1747107040008,-522.91188455,0.00012,2]
[360888682,1747107040385,-258.14588805,0.00012,2]
[360888687,1747107043227,-8313.35309977,0.00012,2]
[360888688,1747107043239,-873.01560385,0.00012,2]
[360888689,1747107043283,-311.85,0.00012,2]
[360888691,1747107046090,-301.6944141,0.00012,2]
[360888692,1747107046145,-1583.78767886,0.00012,2]
[360888693,1747107046157,-387.78191751,0.00012,2]
[360888694,1747107046372,-563.9,0.00012,2]
[360888695,1747107046415,-7279.560215,0.00012,2]
[360888700,1747107062075,1630.68252467,0.0001188,2]
[360888701,1747107066473,-194.16816099,0.00011973,2]
[360888702,1747107070943,1083.04882502,0.000119,2]
[360888703,1747107071635,-208.84615131,0.00011973,2]
[360888704,1747107081376,160.71168311,0.000119,2]
[360888705,1747107082707,-458.51380859,0.00011973,2]
[360888706,1747107087973,1318.93386899,0.000119,2]
[360888707,1747107098316,-293.63499554,0.00011973,2]
[360888708,1747107104287,211.67781859,0.000119,2]
[360888709,1747107107038,181.46799744,0.000119,2]
[360888710,1747107114482,-180.69444866,0.00011973,2]
[360888713,1747107127700,-286.25620373,0.00011973,2]
[360888714,1747107137671,761.00589487,0.000119,2]
[360888715,1747107142725,-228.77891233,0.00011973,2]
[360888716,1747107144780,1741.09898067,0.000119,2]
[360888717,1747107157681,-167.41426294,0.000119,2]
[360888718,1747107173278,-237.5826801,0.000119,2]
[360888719,1747107188891,-300.0,0.00011899,2]
[360888720,1747107188916,-11.70917052,0.000119,2]
[360888721,1747107202614,-188.29082948,0.000119,2]
[360888722,1747107218810,-172.25331287,0.00011899,2]
[360888723,1747107232655,-156.0915832,0.00011899,2]
[360888724,1747107248591,-171.24759655,0.00011899,2]
[360888725,1747107263228,-0.40750738,0.00011899,2]
[360888726,1747107263258,-486.70347361,0.00011899,2]
[360888727,1747107277710,-13.29652639,0.00011899,2]
[360888728,1747107277746,-143.29852634,0.00011899,2]
[360888729,1747107293878,-257.58890794,0.00011898,2]
[360888730,1747107307695,-242.41109206,0.00011897,2]
[360888731,1747107322662,-257.58890794,0.00011897,2]
[360888732,1747107340054,-279.3936989,0.00011897,2]
[360888733,1747107353815,-327.56911167,0.00011897,2]
[360888735,1747107367733,-93.03718943,0.00011897,2]
[360888736,1747107367758,-106.96281057,0.00011897,2]
[360888739,1747107382663,-193.03718943,0.00011897,2]
[360888740,1747107382689,-145.20140833,0.00011897,2]
[360888741,1747107395499,1000.0,0.00010632,2]
[360888742,1747107397691,-4.79859167,0.00011897,2]
[360888743,1747107397722,-215.1078345,0.00011897,2]
[360888744,1747107412771,-152.0,0.00011897,2]
[360888745,1747107428467,-132.8921655,0.00011897,2]
[360888746,1747107428492,-127.99701581,0.00011897,2]
[360888747,1747107442695,-287.25695183,0.00011897,2]
[360888748,1747107442727,-118.91520748,0.00011897,2]
[360888749,1747107459357,-200.99053435,0.00011897,2]
[360888750,1747107472672,-180.09425817,0.00011897,2]
[360888751,1747107472703,-110.94321283,0.00011897,2]
[360888752,1747107487081,260.56,0.00010149,2]
[360888753,1747107487629,-208.962529,0.00011897,2]
[360888754,1747107503287,-180.09425817,0.00011897,2]
[360888755,1747107503323,-50.72036595,0.00011897,2]
[360888756,1747107515393,1000.0,0.00010142,2]
[360888757,1747107517951,-159.76,0.00011896,2]
[360888758,1747107532680,-212.89363672,0.00011896,2]
[360888759,1747107548217,-194.30860344,0.00011895,2]
[360888760,1747107553845,165.28,0.00011519,2]
[360888761,1747107562678,-105.69139656,0.00011895,2]
[360888762,1747107562702,-140.41402126,0.00011895,2]
[360888763,1747107575471,1000.0,0.0001144,2]
[360888764,1747107577744,-9.58597874,0.00011895,2]
[360888765,1747107577776,-127.34636328,0.00011896,2]
[360888766,1747107577805,-116.96224016,0.00011896,2]
[360888767,1747107583227,483.38234315,0.00028,120]
[360888768,1747107592761,-223.8513814,0.00011896,2]
[360888769,1747107607840,-221.69386892,0.00011895,2]
[360888770,1747107622635,-368.96328079,0.00011895,2]
[360888771,1747107637739,-209.34285029,0.00011894,2]
[360888772,1747107653925,-188.77795659,0.00011894,2]
[360888773,1747107667743,-101.87919312,0.00011894,2]
[360888774,1747107667781,-198.6473087,0.00011894,2]
[360888775,1747107682854,-294.32985794,0.00011894,2]
[360888776,1747107697805,-7.02283336,0.00011894,2]
[360888777,1747107697838,-158.98834081,0.00011894,2]
[360888778,1747107712699,-325.61849025,0.00011894,2]
[360888779,1747107728686,-150.0,0.00011893,2]
[360888780,1747107728723,-15.39316894,0.00011894,2]
[360888781,1747107728754,-79.41502401,0.00011894,2]
[360888782,1747107743406,-255.19180705,0.00011894,2]
[360888783,1747107757777,-173.37737752,0.00011893,2]
[360888784,1747107773287,-299.25104553,0.00011893,2]
[360888785,1747107788296,-284.77148748,0.00011892,2]
[360888786,1747107796602,574.16,0.00011499,2]
[360888787,1747107796625,3670.22,0.00011499,2]
[360888788,1747107802722,-15.22851252,0.00011892,2]
[360888789,1747107802751,-27.37157695,0.00011893,2]
[360888790,1747107802779,-166.64128664,0.00011893,2]
[360888791,1747107817656,-328.0258496,0.00011893,2]
[360888792,1747107828768,250.0,0.00011768,2]
[360888793,1747107832719,-5.33286376,0.00011893,2]
[360888794,1747107832748,-297.68735418,0.00011893,2]
[360888795,1747107847725,-152.0,0.00011861,2]
[360888796,1747107862716,-173.27878733,0.00011861,2]
[360888797,1747107865623,79.78,0.00011547,2]
[360888798,1747107865660,920.22,0.00011547,2]
[360888799,1747107874018,1900.0,0.0002,30]
[360888800,1747107877649,-152.04099473,0.00011861,2]
[360888801,1747107881842,3079.78,0.00011547,2]
[360888802,1747107881867,4000.0,0.00011547,2]
[360888803,1747107881890,4000.0,0.00011547,2]
[360888804,1747107881914,2864.89,0.00011547,2]
[360888805,1747107893229,-280.81372129,0.00011861,2]
[360888806,1747107908196,-316.86649665,0.00011861,2]
[360888807,1747107908219,-189.43476917,0.00011861,2]
[360888808,1747107923720,-252.68798958,0.0001186,2]
[360888809,1747107937796,-196.17520331,0.0001186,2]
[360888810,1747107953257,-51.13680711,0.0001186,2]
[360888811,1747107953286,-190.74656902,0.0001186,2]
[360888812,1747107953315,-35.65307889,0.0001186,2]
[360888813,1747107954818,1135.11,0.000118,2]
[360888814,1747107954839,100.86818,0.000118,2]
[360888815,1747107967874,-275.30198589,0.0001186,2]
[360888816,1747107982723,-189.04493522,0.0001186,2]
[360888817,1747107982751,-110.95506478,0.0001186,2]
[360888818,1747107997663,-407.80917999,0.00011859,2]
[360888819,1747108012740,-92.19082001,0.00011859,2]
[360888820,1747108012771,-89.48474052,0.00011859,2]
[360888822,1747108027688,-163.2632268,0.00011859,2]
[360888836,1747108029414,222.03871319,0.00011759,2]
[360888839,1747108042769,-189.32716082,0.00011859,2]
[360888853,1747108054373,189.55,0.00011466,2]
[360888854,1747108057912,-57.92487186,0.00011859,2]
[360888855,1747108057942,-128.78078858,0.00011859,2]
[360888856,1747108072760,-172.91907261,0.00011859,2]
[360888857,1747108087665,-152.30856921,0.00011859,2]
[360888858,1747108102762,-45.9915696,0.00011859,2]
[360888859,1747108102791,-200.09089888,0.00011859,2]
[360888860,1747108117714,-186.15821962,0.00011859,2]
[360888861,1747108133270,-113.7508815,0.00011859,2]
[360888862,1747108133298,-87.03343225,0.00011859,2]
[360888863,1747108147848,3000.0,0.00028,120]
[360888864,1747108149537,-182.51621689,0.00011859,2]
[360888865,1747108163857,-245.68035737,0.00011858,2]
[360888866,1747108177730,-254.31964263,0.00011858,2]
[360888867,1747108177758,-45.68035737,0.00011858,2]
[360888868,1747108193260,-300.66550872,0.00011858,2]
[360888869,1747108204984,492.17566525,0.00011848,2]
[360888870,1747108207684,-153.65413391,0.00011858,2]
[360888871,1747108207719,-1.82431138,0.00011858,2]
[360888872,1747108222764,-162.23120689,0.00011858,2]
[360888873,1747108232179,-439.25991913,0.00011858,2]
[360888874,1747108232189,-200.0,0.0001186,2]
[360888875,1747108232199,-926.92306841,0.00011861,2]
[360888876,1747108232209,-148.23329378,0.00011881,2]
[360888877,1747108232433,-51.76670622,0.00011881,2]
[360888878,1747108232443,-150.0,0.00011899,2]
[360888879,1747108232454,-1146.39713394,0.00011899,2]
[360888880,1747108232487,-53.60286606,0.00011899,2]
[360888881,1747108232497,-399.30926736,0.00011899,2]